bitfinex/quotes_ETHUSD_20251119
["timestamp","ask_amount","ask_price","bid_price","bid_amount"]
[1763570451786,0.4554,2952.7,2951.6,0.4565]
[1763570452086,0.4546,2952.7,2951.6,0.4565]
[1763570452885,0.405504,2952.6,2951.6,0.001]
[1763570453298,0.405504,2953.1,2951.6,0.001]
[1763570453990,0.405504,2952.9,2951.6,0.001]
[1763570454514,0.405504,2952.7,2951.6,0.001]
[1763570454880,0.90699264,2953.2,2951.6,0.001]
[1763570454881,0.4554,2952.6,2951.6,0.001]
[1763570455081,0.405504,2952.5,2951.6,0.001]
[1763570455600,0.4554,2952.4,2951.6,0.001]
[1763570456288,0.405504,2952.3,2951.6,0.001]
[1763570456621,0.1967,2951.7,2951.6,0.001]
[1763570457115,0.1967,2952.0,2951.6,0.001]
[1763570457319,0.405504,2952.3,2951.6,0.001]
[1763570457481,0.860904,2952.3,2951.6,0.001]
[1763570457927,0.405504,2952.1,2951.6,0.001]
[1763570458284,0.4554,2952.1,2951.6,0.001]
[1763570458484,0.405504,2952.3,2951.6,0.001]
[1763570459420,0.860904,2952.3,2951.6,0.001]
[1763570460249,0.002,2952.7,2951.6,0.4565]
[1763570460912,0.002,2952.7,2952.6,0.1939]
[1763570461314,0.002,2952.7,2952.3,0.4555]
[1763570461624,0.002,2952.7,2952.2,0.1939]
[1763570462024,0.002,2953.3,2952.2,0.1939]
[1763570462025,0.002,2953.3,2952.6,7.87108912]
[1763570462373,0.002,2953.3,2953.2,8.94698176]
[1763570462519,0.002,2953.3,2953.2,9.40248176]
[1763570462858,0.002,2954.4,2953.6,0.90699264]
[1763570463061,0.002,2954.4,2954.3,0.1941]
[1763570463350,0.002,2954.4,2954.0,0.1941]
[1763570463514,0.002,2954.4,2954.0,0.657]
[1763570463914,0.002,2954.4,2954.1,0.4629]
[1763570464550,0.002,2954.4,2954.3,0.90699264]
[1763570464755,0.002,2955.0,2954.4,0.405504]
[1763570465072,0.4538,2956.8,2955.3,0.90699264]
[1763570465361,0.002,2957.9,2955.8,0.90699264]
[1763570465362,0.6498,2957.4,2955.8,0.90699264]
[1763570465512,0.196,2957.4,2955.4,0.90699264]
[1763570465715,0.4538,2957.3,2955.5,0.4629]
[1763570466215,0.4538,2957.3,2955.6,0.4629]
[1763570466955,0.405504,2957.2,2955.6,0.4629]
[1763570467315,0.4538,2957.1,2955.6,1.36989264]
[1763570467515,0.4538,2957.1,2955.7,0.90699264]
[1763570467737,0.4538,2957.1,2955.7,0.4988]
[1763570467937,0.4538,2957.1,2955.8,0.4988]
[1763570468749,0.601504,2957.4,2955.8,7.31982562]
[1763570468750,0.196,2957.4,2955.8,7.31982562]
[1763570468954,0.1923,2957.7,2956.4,0.90699264]
[1763570469252,0.002,2957.9,2957.4,0.90699264]
[1763570469568,0.002,2957.9,2957.6,0.1289]
[1763570469738,0.002,2957.9,2957.8,7.72801826]
[1763570470082,0.002,2958.7,2957.8,7.72801826]
[1763570470083,0.002,2958.7,2957.9,0.90699264]
[1763570470283,0.002,2958.7,2957.6,0.1289]
[1763570470488,0.002,2958.7,2957.7,0.4988]
[1763570470781,0.002,2958.7,2957.9,0.90699264]
[1763570470948,0.002,2958.7,2958.0,0.4988]
[1763570471152,0.002,2958.7,2958.1,0.90699264]
[1763570471678,0.002,2958.7,2957.6,0.1289]
[1763570471977,0.002,2958.7,2957.6,0.79020749]
[1763570472164,0.002,2958.7,2957.7,1.40579264]
[1763570472368,0.002,2958.7,2958.0,0.90699264]
[1763570472741,0.002,2958.7,2958.1,0.904304]
[1763570472984,0.002,2958.7,2958.1,5.19184496]
[1763570473574,0.002,2958.7,2958.1,1.40579264]
[1763570474268,0.002,2958.7,2958.1,12.01287058]
[1763570474647,0.002,2958.7,2958.2,1.31249664]
[1763570474860,0.002,2958.7,2958.6,8.13352226]
[1763570475073,0.002,2958.7,2958.6,12.01229927]
[1763570475286,0.002,2960.3,2958.8,0.405504]
[1763570475472,0.002,2960.3,2958.7,1.40579264]
[1763570475656,0.002,2960.3,2959.2,1.09449264]
[1763570475861,0.002,2960.3,2959.2,1.49999664]
[1763570476057,0.002,2960.3,2959.2,1.99879664]
[1763570476258,0.002,2960.3,2959.2,0.6863]
[1763570476461,0.1923,2960.0,2959.2,0.1875]
[1763570476991,0.0012,2959.3,2958.9,0.90699264]
[1763570477196,0.0012,2959.3,2959.0,0.4988]
[1763570477958,0.0012,2959.3,2958.9,0.90699264]
[1763570478356,0.0012,2959.3,2959.0,0.4988]
[1763570479095,0.0012,2959.3,2958.9,4.28656937]
[1763570479281,0.0012,2959.3,2959.1,0.4988]
[1763570479696,0.0012,2959.3,2959.2,0.405504]
[1763570480008,0.0012,2959.3,2959.1,0.4988]
[1763570480515,0.0012,2959.3,2958.9,1.57299427]
[1763570481104,0.0012,2959.3,2959.0,0.4988]
[1763570481320,0.002,2960.3,2959.0,0.4988]
[1763570481616,0.002,2960.3,2960.2,0.90699264]
[1763570482374,0.002,2960.3,2960.2,1.40579264]
[1763570482885,0.002,2960.6,2960.2,9.2307881]
[1763570483087,0.002,2960.6,2960.3,0.4988]
[1763570483619,0.002,2960.6,2959.9,0.90699264]
[1763570484112,0.002,2960.6,2959.8,0.90699264]
[1763570484779,0.4618,2960.5,2959.8,0.90699264]
[1763570485509,0.002,2960.6,2959.8,0.90699264]
[1763570485979,0.4638,2960.6,2959.8,0.90699264]
[1763570486479,0.4638,2960.6,2959.8,4.28557777]
[1763570486480,0.002,2960.6,2959.8,4.28557777]
[1763570486988,0.4618,2960.5,2959.3,7.82499546]
[1763570487177,0.002,2960.6,2959.4,0.90699264]
[1763570487385,0.4618,2960.5,2959.4,0.90699264]
[1763570487580,0.4618,2960.5,2958.9,8.49099709]
[1763570487809,0.405504,2960.4,2959.0,0.339]
[1763570488011,0.1966,2959.0,2957.7,0.4976]
[1763570488328,0.405504,2958.7,2956.8,7.82499546]
[1763570488491,0.405504,2958.7,2956.8,11.20700588]
[1763570488816,0.405504,2958.5,2956.9,0.90699264]
[1763570489012,0.405504,2958.5,2956.8,7.82499546]
[1763570489314,0.405504,2958.3,2956.9,0.90699264]
[1763570489500,0.4618,2958.4,2957.2,7.82499546]
[1763570489674,0.405504,2958.3,2956.8,7.82499546]
[1763570489875,0.405504,2958.3,2956.6,0.6947]
[1763570489876,0.405504,2958.3,2956.6,7.82499546]
[1763570490083,0.405504,2958.1,2956.2,7.82499546]
[1763570490509,0.405504,2957.9,2956.3,0.90699264]
[1763570490889,0.405504,2957.7,2956.0,0.1971]
[1763570491290,0.4618,2957.6,2956.1,1.40459264]
[1763570491484,0.1136,2958.8,2956.8,6.81191613]
[1763570491485,0.4618,2958.1,2956.8,6.81191613]
[1763570491728,0.1136,2958.8,2957.4,0.90699264]
[1763570491913,0.4618,2959.2,2958.0,0.1053]
[1763570492435,0.4618,2959.7,2958.4,0.90699264]
[1763570492637,0.002,2960.6,2958.9,0.90699264]
[1763570492638,0.4618,2960.5,2958.9,0.90699264]
[1763570492947,0.4618,2960.5,2959.3,6.81191613]
[1763570493107,0.4618,2960.5,2959.4,0.90699264]
[1763570493736,0.4618,2960.5,2959.4,7.66506777]
[1763570494025,0.002,2960.6,2959.5,0.4976]
[1763570494236,0.002,2960.6,2959.6,0.405504]
[1763570494528,0.002,2960.6,2959.9,0.90699264]
[1763570494892,0.002,2960.6,2959.3,7.30951613]
[1763570495098,0.002,2960.3,2959.4,0.90699264]
[1763570495736,0.002,2960.3,2959.1,0.1971]
[1763570495895,0.405504,2960.2,2958.6,0.6947]
[1763570496094,0.405504,2960.2,2958.8,0.90699264]
[1763570496309,0.4638,2960.3,2958.9,0.4976]
[1763570496718,0.4638,2960.3,2959.3,0.90699264]
[1763570496719,0.002,2960.3,2959.3,0.90699264]
[1763570497128,0.002,2960.3,2959.8,0.90699264]
[1763570497431,0.002,2960.3,2959.7,6.81191613]
[1763570497432,0.002,2960.3,2960.2,4.48224276]
[1763570497613,0.002,2960.3,2960.2,1.10409264]
[1763570497816,0.002,2960.3,2960.2,12.19556289]
[1763570498023,0.002,2960.6,2960.3,1.31249664]
[1763570498338,0.002,2960.9,2960.3,1.80839664]
[1763570498509,0.002,2961.2,2960.9,0.405504]
[1763570498697,0.002,2961.2,2960.9,1.31249664]
[1763570499033,0.002,2961.5,2961.1,0.405504]
[1763570499217,0.002,2961.5,2961.4,7.71890877]
[1763570500035,0.002,2961.5,2961.4,0.90699264]
[1763570500532,0.002,2961.5,2961.4,11.09569002]
[1763570500734,0.002,2961.5,2961.4,7.71890877]
[1763570500933,0.002,2961.5,2961.4,11.09569002]
[1763570501237,0.002,2961.5,2961.4,11.99709402]
[1763570501944,0.0012,2961.5,2961.4,8.21480877]
[1763570502120,0.0012,2961.5,2961.4,11.59159002]
[1763570502321,0.0012,2961.5,2961.4,7.71890877]
[1763570502552,0.0012,2961.5,2960.9,10.1892644]
[1763570502853,0.0012,2961.5,2960.6,6.81191613]
[1763570503253,0.0012,2961.5,2960.7,0.90699264]
[1763570503457,0.0012,2961.5,2960.7,1.40289264]
[1763570503665,0.0012,2961.5,2960.6,6.81191613]
[1763570503666,0.4674,2961.5,2960.6,6.81191613]
[1763570503866,0.4674,2961.5,2960.7,0.90699264]
[1763570504523,0.0012,2961.5,2960.7,0.90699264]
[1763570505060,0.0012,2961.5,2961.2,0.90699264]
[1763570505362,0.6628,2963.5,2961.6,1.31249664]
[1763570505667,0.88152032,2964.8,2961.6,1.31249664]
[1763570505668,0.1993,2963.9,2962.1,0.405504]
[1763570505820,0.1993,2963.9,2962.8,0.90699264]
[1763570505821,0.6655,2963.9,2962.8,0.90699264]
[1763570506022,0.4662,2964.5,2963.3,0.90699264]
[1763570506222,0.1993,2965.4,2963.7,6.81191613]
[1763570506419,0.6655,2964.6,2963.2,7.71890877]
[1763570506623,0.6655,2964.6,2962.9,0.405504]
[1763570506624,0.6655,2964.6,2963.0,0.90699264]
[1763570506823,0.4662,2964.5,2962.4,6.81191613]
[1763570507060,0.4662,2964.5,2962.5,0.90699264]
[1763570507222,0.4662,2964.5,2962.6,0.405504]
[1763570507422,0.4662,2964.5,2962.4,6.81191613]
[1763570507656,0.90699264,2964.3,2961.9,0.90699264]
[1763570507851,0.405504,2964.2,2961.4,0.1953]
[1763570508050,0.405504,2964.2,2961.4,6.81191613]
[1763570508239,0.405504,2964.0,2961.5,0.03376667]
[1763570508443,0.405504,2964.0,2961.4,6.81191613]
[1763570508444,1.31249664,2964.0,2961.4,6.81191613]
[1763570508646,0.405504,2963.8,2961.5,0.03376667]
[1763570508962,0.6655,2963.9,2962.0,0.90699264]
[1763570509160,0.4662,2963.8,2962.0,0.90699264]
[1763570509368,0.6655,2963.9,2962.5,0.90699264]
[1763570509979,0.4662,2963.8,2962.5,4.28246966]
[1763570510288,0.4662,2964.5,2963.4,6.81191613]
[1763570510931,0.1993,2965.0,2963.5,0.90699264]
[1763570511351,0.4662,2964.9,2963.6,3.37427453]
[1763570511550,0.1993,2965.0,2963.9,6.81191613]
[1763570512046,0.1993,2966.4,2964.4,6.81191613]
[1763570512246,0.1993,2966.4,2965.1,0.90699264]
[1763570512650,0.6655,2966.4,2965.1,0.90699264]
[1763570512973,0.1993,2967.0,2965.5,6.81191613]
[1763570513176,0.1993,2967.0,2965.6,0.90699264]
[1763570513490,0.1993,2967.5,2966.1,0.90699264]
[1763570513836,0.4662,2967.6,2966.5,6.81191613]
[1763570514035,0.4662,2967.6,2965.3,0.4959]
[1763570514346,0.405504,2967.5,2965.3,0.90699264]
[1763570514785,0.405504,2967.3,2965.3,0.90699264]
[1763570514950,0.405504,2967.3,2964.9,0.90699264]
[1763570515274,0.405504,2967.1,2964.7,0.90699264]
[1763570515486,0.405504,2966.9,2964.0,0.4959]
[1763570515780,0.405504,2966.7,2962.5,6.75105484]
[1763570515953,0.405504,2966.7,2963.3,7.30781613]
[1763570515954,0.405504,2966.1,2963.3,7.30781613]
[1763570516277,0.405504,2966.1,2963.4,0.90699264]
[1763570516460,0.405504,2965.9,2963.4,0.90699264]
[1763570516908,0.405504,2965.7,2963.4,0.90699264]
[1763570517130,0.405504,2965.7,2962.5,10.12658226]
[1763570517131,0.405504,2965.7,2963.9,0.90699264]
[1763570517434,0.405504,2965.5,2963.5,8.62847818]
[1763570517597,0.405504,2965.3,2963.6,0.90699264]
[1763570517813,0.4662,2967.0,2964.5,8.13257818]
[1763570517992,0.09999999,2968.7,2964.5,8.13257818]
[1763570517993,0.1993,2966.2,2964.6,1.31249664]
[1763570518198,0.4662,2968.0,2965.6,0.90699264]
[1763570518424,0.4662,2967.9,2966.1,0.90699264]
[1763570519399,0.4662,2967.9,2966.3,0.90699264]
[1763570519834,0.4662,2967.9,2966.1,0.90699264]
[1763570520458,0.4662,2967.9,2966.2,0.4959]
[1763570520660,0.4662,2967.9,2966.6,0.90699264]
[1763570520972,0.4662,2967.8,2966.2,0.4959]
[1763570521119,0.4662,2967.8,2966.4,0.90699264]
[1763570521318,0.4662,2968.2,2966.5,0.90699264]
[1763570521515,0.4662,2968.0,2966.5,0.90699264]
[1763570521719,0.4662,2968.0,2966.0,0.4959]
[1763570521953,0.405504,2967.9,2965.3,0.4959]
[1763570522121,0.405504,2967.9,2964.9,8.13257818]
[1763570522316,0.405504,2967.7,2965.0,0.90699264]
[1763570522557,0.405504,2967.5,2965.5,0.90699264]
[1763570522766,0.405504,2967.5,2965.4,8.13257818]
[1763570522945,1.10629264,2968.1,2964.9,8.13257818]
[1763570522946,0.405504,2967.3,2964.9,8.13257818]
[1763570523153,1.31249664,2967.1,2964.5,0.4959]
[1763570523352,0.4662,2967.2,2964.5,0.4959]
[1763570523353,0.17786966,2967.0,2964.8,8.13257818]
[1763570523539,0.405504,2966.9,2964.8,8.13257818]
[1763570523742,0.604804,2966.9,2964.8,8.13257818]
[1763570524118,0.405504,2966.7,2964.0,0.1953]
[1763570524241,2.527308,2966.6,2964.0,0.1953]
[1763570524575,0.405504,2966.3,2963.7,8.13257818]
[1763570524722,0.405504,2966.3,2963.2,0.4959]
[1763570524723,0.405504,2966.3,2963.2,12.00312531]
[1763570525075,0.405504,2966.1,2963.2,8.62847818]
[1763570525281,0.405504,2966.1,2964.2,8.13257818]
[1763570525440,0.4662,2966.0,2964.3,0.90699264]
[1763570525770,0.405504,2965.9,2963.6,8.13257818]
[1763570526064,0.405504,2965.7,2963.7,0.90699264]
[1763570526429,0.405504,2965.5,2963.7,1.40289264]
[1763570526624,0.405504,2965.5,2963.8,0.4959]
[1763570526856,0.4654,2965.4,2963.8,0.4959]
[1763570527057,0.4654,2965.4,2963.7,0.90699264]
[1763570527268,0.4654,2965.4,2963.7,8.13257818]
[1763570527430,0.405504,2965.3,2963.8,0.90699264]
[1763570527629,0.405504,2965.3,2963.2,8.13257818]
[1763570527867,8.13257818,2966.0,2963.1,0.4633]
[1763570528030,1.31249664,2965.9,2963.1,0.4633]
[1763570528232,0.405504,2965.7,2963.3,0.90699264]
[1763570528546,0.1993,2966.9,2963.1,0.4633]
[1763570528547,0.405504,2966.7,2963.8,0.90699264]
[1763570528852,5.00969,2966.6,2963.8,0.90699264]
[1763570529162,8.33187818,2966.9,2963.2,0.4633]
[1763570529163,1.31249664,2966.3,2963.3,0.90699264]
[1763570529375,0.405504,2966.7,2963.8,0.90699264]
[1763570529538,0.405504,2966.5,2963.8,0.90699264]
[1763570529723,0.405504,2966.5,2963.4,0.4633]
[1763570529724,1.31249664,2966.3,2963.4,11.97031383]
[1763570529928,0.405504,2966.1,2963.5,1.37029264]
[1763570530333,0.405504,2966.1,2962.7,3.37524129]
[1763570530334,0.405504,2965.9,2962.9,8.59587818]
[1763570530534,0.405504,2965.9,2963.0,0.001]
[1763570530535,0.405504,2965.7,2963.0,0.001]
[1763570530761,0.405504,2965.5,2963.3,8.13257818]
[1763570530971,0.405504,2965.5,2963.4,0.90699264]
[1763570531172,0.002,2965.9,2963.4,0.90699264]
[1763570531173,0.405504,2965.3,2963.4,0.90699264]
[1763570531393,0.4744,2965.4,2963.9,0.90699264]
[1763570531674,0.4764,2965.9,2964.1,0.90699264]
[1763570531871,0.4764,2965.9,2964.4,0.90699264]
[1763570532282,0.4764,2965.9,2962.3,7.59073801]
[1763570532571,0.405504,2965.8,2963.5,0.90699264]
[1763570532771,0.405504,2965.6,2963.5,0.90699264]
[1763570533069,0.405504,2965.6,2963.6,0.4633]
[1763570533272,0.405504,2965.4,2963.6,0.4633]
[1763570533434,0.405504,2965.4,2963.8,0.90699264]
[1763570533778,0.4744,2965.3,2963.6,4.74456158]
[1763570534136,0.4744,2965.3,2963.7,0.4633]
[1763570534973,0.1023,2965.2,2963.7,0.4633]
[1763570535478,0.1023,2965.2,2963.8,3.37404683]
[1763570535780,0.5767,2965.2,2963.8,0.90699264]
[1763570535946,0.002,2965.9,2963.5,0.90699264]
[1763570536148,0.002,2966.2,2965.8,8.13257818]
[1763570536369,0.002,2966.2,2966.0,8.53808218]
[1763570536687,0.002,2966.2,2965.2,0.4633]
[1763570536869,0.002,2966.2,2965.2,1.37029264]
[1763570537032,0.002,2966.2,2965.3,0.405504]
[1763570537233,0.002,2966.2,2965.5,0.90699264]
[1763570537584,0.002,2966.2,2965.9,11.5041469]
[1763570537891,0.002,2966.2,2965.9,8.13257818]
[1763570538177,0.002,2966.2,2966.0,0.4633]
[1763570538535,0.002,2966.2,2966.1,0.405504]
[1763570538761,0.002,2966.2,2966.1,0.868804]
[1763570538964,0.002,2966.2,2966.1,0.4633]
[1763570539210,0.002,2966.2,2966.1,9.90837482]
[1763570539849,0.002,2966.2,2966.1,13.27980531]
[1763570540946,0.4744,2968.5,2966.2,1.31249664]
[1763570541181,0.4744,2968.5,2966.4,0.405504]
[1763570541541,0.4744,2968.5,2966.4,0.868804]
[1763570541743,0.4744,2968.5,2966.5,1.31249664]
[1763570541936,0.1829,2969.2,2966.5,1.31249664]
[1763570541937,0.4744,2968.4,2967.0,0.90699264]
[1763570542561,0.4744,2968.4,2966.4,8.13257818]
[1763570542562,0.405504,2968.3,2966.4,8.13257818]
[1763570542748,0.405504,2968.3,2966.5,0.90699264]
[1763570542980,0.4744,2968.2,2966.5,1.37029264]
[1763570543181,0.4744,2969.1,2967.0,0.90699264]
[1763570543401,0.4744,2969.0,2967.1,0.1914]
[1763570543603,0.6573,2969.2,2967.9,8.13257818]
[1763570543808,0.4744,2969.1,2967.5,0.90699264]
[1763570544309,0.405504,2969.0,2966.9,0.90699264]
[1763570544800,0.405504,2968.8,2966.9,0.90699264]
[1763570545005,0.405504,2968.8,2966.6,0.1914]
[1763570545207,0.405504,2968.6,2966.3,8.13257818]
[1763570545365,0.405504,2968.6,2966.4,0.90699264]
[1763570545563,0.405504,2968.4,2966.4,0.90699264]
[1763570545768,0.405504,2968.4,2966.3,8.13257818]
[1763570545979,0.405504,2968.2,2966.3,8.13257818]
[1763570546506,0.1363,2966.4,2965.3,0.1554]
[1763570547008,0.6477,2967.1,2966.1,8.13257818]
[1763570547369,0.1844,2967.5,2966.1,8.13257818]
[1763570547568,0.88669859,2969.7,2967.5,1.31249664]
[1763570547764,0.1844,2969.8,2966.2,1.970504]
[1763570547765,0.4633,2969.6,2967.8,0.1858]
[1763570548198,0.4633,2969.6,2967.4,1.58779264]
[1763570548399,0.405504,2969.5,2967.0,0.90699264]
[1763570548696,0.405504,2969.5,2966.9,8.13257818]
[1763570548932,0.002,2968.2,2966.5,8.13257818]
[1763570549117,0.002,2968.2,2966.6,0.90699264]
[1763570549318,0.6477,2968.1,2966.6,0.90699264]
[1763570549620,0.002,2968.2,2967.1,8.13257818]
[1763570549823,0.002,2968.5,2968.1,0.1858]
[1763570549995,0.4633,2970.5,2968.2,0.90699264]
[1763570550200,0.002,2968.8,2968.2,0.495]
[1763570550811,0.16870377,2970.8,2968.5,0.90699264]
[1763570551053,0.16870377,2970.8,2969.7,8.13257818]
[1763570551251,0.16870377,2970.8,2969.5,0.90699264]
[1763570551541,0.16870377,2970.8,2969.6,0.495]
[1763570551696,0.16870377,2970.8,2969.6,3.86236962]
[1763570551902,0.16790377,2970.8,2969.7,0.90699264]
[1763570552734,0.16790377,2970.8,2969.9,8.13257818]
[1763570553043,0.16790377,2970.8,2970.5,0.90699264]
[1763570553413,0.16790377,2970.8,2969.6,0.495]
[1763570553744,0.16790377,2970.8,2969.9,0.90699264]
[1763570553900,0.16790377,2970.8,2969.9,4.27405309]
[1763570554097,0.16790377,2970.8,2970.5,0.405504]
[1763570554318,0.16790377,2970.8,2970.3,8.13257818]
[1763570554319,0.16790377,2970.8,2970.2,8.13257818]
[1763570554519,0.16790377,2970.8,2970.3,0.90699264]
[1763570555055,0.16790377,2970.8,2970.7,9.44507482]
[1763570555255,0.16790377,2970.8,2970.7,0.90699264]
[1763570555749,0.16790377,2970.8,2970.7,1.40199264]
[1763570555933,0.4633,2973.1,2970.8,1.31249664]
[1763570556137,0.4633,2973.1,2971.8,0.90699264]
[1763570556338,0.4633,2973.1,2970.9,0.6808]
[1763570556533,0.4633,2973.1,2970.8,0.90699264]
[1763570556708,0.4633,2973.1,2970.7,8.13257818]
[1763570556907,3.523244,2973.0,2970.3,0.90699264]
[1763570557219,1.31249664,2972.8,2970.2,8.13257818]
[1763570557417,0.405504,2972.8,2970.2,8.13257818]
[1763570557625,0.405504,2972.6,2969.6,8.13257818]
[1763570557936,11.16465,2972.7,2969.7,0.90699264]
[1763570557937,1.31249664,2972.4,2969.7,0.90699264]
[1763570558151,0.4898,2972.6,2970.3,0.90699264]
[1763570558352,0.405504,2972.7,2970.3,0.90699264]
[1763570558726,0.4898,2972.6,2970.7,8.13257818]
[1763570559335,0.4898,2972.6,2970.4,0.48]
[1763570559629,0.405504,2972.5,2969.7,8.13257818]
[1763570559829,0.405504,2972.5,2969.6,0.48]
[1763570559830,3.768186,2972.5,2969.6,0.48]
[1763570560026,0.9155986,2972.4,2970.4,8.13257818]
[1763570560230,0.9155986,2972.4,2969.6,7.21491378]
[1763570560231,0.4898,2972.4,2969.9,8.13257818]
[1763570560536,0.1844,2973.3,2969.9,8.13257818]
[1763570560537,0.405504,2972.2,2970.0,0.90699264]
[1763570561041,0.405504,2972.0,2970.0,0.90699264]
[1763570561241,0.405504,2972.0,2970.1,0.48]
[1763570561462,0.405504,2971.8,2970.1,0.48]
[1763570561946,0.4898,2971.7,2970.1,0.48]
[1763570562376,0.405504,2971.6,2970.0,0.90699264]
[1763570562561,0.405504,2971.4,2969.5,0.6627]
[1763570562732,0.405504,2971.4,2969.9,8.13257818]
[1763570563067,0.4898,2973.0,2971.4,0.90699264]
[1763570563263,0.4898,2973.2,2970.2,0.48]
[1763570563432,0.4898,2973.1,2970.5,0.90699264]
[1763570563632,0.4898,2973.1,2970.5,1.3103819]
[1763570564746,0.4898,2973.1,2970.2,0.48]
[1763570564945,0.4898,2973.1,2967.5,4.21498269]
[1763570564946,0.405504,2972.4,2969.2,8.13257818]
[1763570565160,0.405504,2972.2,2969.4,0.48]
[1763570565461,0.405504,2972.2,2970.2,8.13257818]
[1763570565664,0.405504,2972.0,2970.3,0.90699264]
[1763570565845,0.405504,2971.8,2969.7,8.61257818]
[1763570566046,0.405504,2971.8,2969.0,0.48]
[1763570566253,0.405504,2971.8,2968.5,8.61257818]
[1763570566254,1.31249664,2971.6,2968.5,8.61257818]
[1763570566445,0.405504,2971.4,2968.5,8.61257818]
[1763570566755,0.405504,2971.4,2968.7,0.48]
[1763570566957,0.405504,2971.2,2968.7,0.48]
[1763570567337,0.405504,2971.0,2970.0,0.001]
[1763570567536,0.586404,2970.1,2970.0,0.001]
[1763570567760,0.405504,2970.0,2968.2,0.6627]
[1763570567963,0.895304,2970.0,2967.7,0.1827]
[1763570568163,0.895304,2970.0,2967.9,0.90699264]
[1763570568447,0.405504,2969.8,2967.8,8.13257818]
[1763570568650,0.1809,2970.1,2967.8,8.13257818]
[1763570568651,0.405504,2969.6,2967.8,8.13257818]
[1763570568966,0.405504,2969.6,2967.9,0.90699264]
[1763570569172,0.1809,2970.5,2969.2,8.13257818]
[1763570569382,0.6707,2970.5,2968.8,8.13257818]
[1763570569979,0.405504,2970.3,2968.8,8.13257818]
[1763570570444,0.895304,2970.3,2968.8,8.13257818]
[1763570570953,0.405504,2970.1,2968.1,12.16442744]
[1763570571161,0.405504,2970.1,2968.2,0.90699264]
[1763570571358,0.405504,2969.9,2967.6,0.48]
[1763570571880,0.405504,2969.7,2968.0,0.90699264]
[1763570572246,0.4898,2969.8,2968.5,0.90699264]
[1763570572680,0.405504,2969.7,2968.5,0.90699264]
[1763570573127,0.4898,2969.7,2968.5,0.90699264]
[1763570573584,0.405504,2969.6,2968.0,1.08969264]
[1763570573769,0.405504,2969.6,2968.1,0.48]
[1763570573970,0.405504,2969.5,2968.1,0.48]
[1763570574173,0.405504,2969.5,2968.0,1.08969264]
[1763570574372,0.405504,2969.3,2968.0,0.90699264]
[1763570574687,0.405504,2969.3,2967.7,0.1827]
[1763570574888,0.405504,2969.1,2967.7,0.1827]
[1763570575185,0.405504,2969.1,2967.8,0.48]
[1763570575401,0.4898,2969.7,2968.5,0.90699264]
[1763570575891,0.4898,2969.7,2968.4,8.61257818]
[1763570576911,0.1809,2969.6,2968.4,1.38699264]
[1763570577111,0.405504,2969.5,2967.9,0.1827]
[1763570577283,0.895304,2969.5,2967.9,0.1827]
[1763570577478,0.894504,2969.5,2967.9,0.1827]
[1763570577785,0.4898,2969.4,2967.9,0.1827]
[1763570577983,0.4898,2969.4,2968.2,6.75505306]
[1763570578412,0.4898,2969.4,2967.9,0.1827]
[1763570578711,0.4898,2969.4,2967.8,0.90699264]
[1763570579498,0.405504,2969.3,2967.8,0.90699264]
[1763570579917,0.405504,2969.1,2967.8,0.90699264]
[1763570580222,0.4898,2969.2,2967.9,0.03369385]
[1763570580509,0.1809,2969.6,2968.2,6.75505306]
[1763570580673,0.4898,2969.5,2968.2,6.75505306]
[1763570580871,0.405504,2969.4,2968.2,6.75505306]
[1763570581320,0.89424435,2971.2,2967.8,4.27647109]
[1763570581321,0.4898,2970.1,2968.8,0.90699264]
[1763570581809,0.4898,2970.1,2968.4,0.90699264]
[1763570582009,0.89910601,2971.3,2968.8,6.75505306]
[1763570582198,0.6707,2970.5,2968.9,0.90699264]
[1763570582398,0.4898,2970.4,2968.9,0.90699264]
[1763570582695,0.405504,2970.3,2968.3,7.23505306]
[1763570582871,0.405504,2970.3,2968.2,0.48]
[1763570583077,0.405504,2970.1,2968.4,6.75505306]
[1763570583417,0.405504,2970.1,2968.5,0.90699264]
[1763570583611,0.405504,2969.9,2968.5,0.90699264]
[1763570583805,0.405504,2969.9,2967.9,6.75505306]
[1763570584104,0.405504,2969.7,2967.7,0.1827]
[1763570584271,0.405504,2969.7,2967.5,0.48]
[1763570584476,0.405504,2969.5,2967.9,6.75505306]
[1763570584709,0.405504,2969.5,2967.6,0.48]
[1763570584710,0.405504,2969.3,2967.6,1.38699264]
[1763570584929,0.405504,2969.3,2967.6,0.48]
[1763570585214,0.405504,2969.3,2967.3,4.23888257]
[1763570585215,0.405504,2969.1,2967.3,0.1827]
[1763570585675,0.405504,2968.9,2967.3,0.1827]
[1763570585879,0.405504,2968.9,2966.7,0.1858]
[1763570586104,0.405504,2968.7,2966.8,0.03370635]
[1763570586413,0.405504,2968.5,2967.1,6.75505306]
[1763570586828,0.405504,2968.3,2967.5,0.001]
[1763570587577,0.405504,2968.1,2967.5,0.001]
[1763570588137,0.405504,2967.9,2967.5,0.001]
[1763570588300,0.405504,2967.9,2965.8,6.75505306]
[1763570588301,0.405504,2967.9,2965.7,0.1851]
[1763570588492,0.405504,2967.7,2965.7,0.1851]
[1763570588820,0.405504,2967.7,2965.7,0.659]
[1763570589024,0.405504,2967.5,2965.7,0.659]
[1763570589224,0.405504,2967.5,2965.7,0.1851]
[1763570589383,0.405504,2967.3,2965.4,0.1851]
[1763570589579,0.405504,2967.3,2965.4,1.09209264]
[1763570589832,0.405504,2967.1,2965.5,0.4739]
[1763570589981,0.405504,2967.1,2965.8,6.75505306]
[1763570590183,0.405504,2967.0,2965.5,0.4739]
[1763570590388,0.405504,2967.0,2965.6,0.90699264]
[1763570590587,0.871304,2967.0,2965.6,0.90699264]
[1763570591093,0.405504,2966.8,2965.4,0.1851]
[1763570591294,0.405504,2966.8,2965.3,0.1861]